bitfinex/quotes_SOLUSD_20240703
["timestamp","ask_amount","ask_price","bid_price","bid_amount"]
[1719977532191,6.69746013,151.11,151.05,23.65]
[1719977532786,6.69746013,151.11,151.06,0.17]
[1719977533196,6.69746013,151.11,151.05,23.65]
[1719977533197,13.31516013,151.11,151.05,23.65]
[1719977533413,8.7229538,151.13,151.06,0.34]
[1719977534304,15.3398538,151.13,151.06,0.34]
[1719977534902,8.7229538,151.13,151.06,0.34]
[1719977536008,8.7229538,151.13,151.06,0.17]
[1719977536227,6.6172,151.12,151.06,0.17]
[1719977536382,15.3398538,151.13,151.06,0.17]
[1719977536588,15.3398538,151.13,151.06,0.34]
[1719977536896,13.31366013,151.15,151.06,1.45427749]
[1719977537297,13.31366013,151.15,151.07,15.872]
[1719977537494,6.69746013,151.15,151.08,24.93416697]
[1719977538109,13.31356013,151.15,151.08,24.93416697]
[1719977538688,6.6164,151.14,151.08,24.93416697]
[1719977539387,6.69746013,151.15,151.08,24.93416697]
[1719977539817,8.7229538,151.17,151.11,23.65]
[1719977539985,6.69746013,151.2,151.12,15.0253]
[1719977540191,6.6142,151.19,151.13,0.17]
[1719977540607,6.69746013,151.2,151.14,23.65]
[1719977543123,6.69746013,151.2,151.13,0.17]
[1719977543623,6.69746013,151.2,151.13,0.34]
[1719977545015,8.7229538,151.22,151.15,23.65]
[1719977545415,6.6134,151.21,151.15,23.65]
[1719977546002,14.31388235,151.21,151.15,23.65]
[1719977546315,7.70048235,151.21,151.15,23.65]
[1719977547416,7.70048235,151.21,151.16,6.4626]
[1719977548016,7.70048235,151.21,151.16,6.2926]
[1719977549714,7.70048235,151.21,151.2,11.78]
[1719977551307,6.6119,151.25,151.2,11.78]
[1719977551623,6.6119,151.25,151.23,11.78]
[1719977551877,14.31238235,151.25,151.23,11.78]
[1719977552013,7.70048235,151.25,151.23,11.78]
[1719977552323,7.70048235,151.25,151.24,11.78]
[1719977553924,7.70048235,151.25,151.19,23.55]
[1719977554820,7.70048235,151.25,151.2,0.17]
[1719977555017,6.91437857,151.29,151.21,6.3003]
[1719977555222,14.61486092,151.29,151.22,23.55]
[1719977555403,19.92,151.23,151.11,22.2323]
[1719977555724,17.70909797,151.22,151.11,22.2323]
[1719977555924,6.6137,151.2,151.11,22.2323]
[1719977556112,7.70048235,151.22,151.11,22.2323]
[1719977556319,6.6152,151.17,151.11,22.2323]
[1719977557312,14.64472623,151.22,151.11,22.2323]
[1719977557612,6.6142,151.19,151.12,20.0]
[1719977558335,6.6138,151.2,151.13,0.17]
[1719977558515,6.6142,151.19,151.13,0.17]
[1719977558907,14.64472623,151.22,151.13,0.17]
[1719977559107,6.6133,151.21,151.13,0.34]
[1719977559320,7.70048235,151.22,151.13,0.34]
[1719977559515,8.98224768,151.25,151.13,0.34]
[1719977559727,8.98224768,151.25,151.13,30.34]
[1719977559943,6.6124,151.24,151.14,20.0]
[1719977560106,6.6124,151.24,151.15,0.34]
[1719977560315,6.6124,151.23,151.15,0.34]
[1719977560510,6.612,151.24,151.15,0.34]
[1719977560719,6.6125,151.23,151.15,0.34]
[1719977560917,8.98224768,151.25,151.15,0.34]
[1719977561220,6.6134,151.21,151.15,0.17]
[1719977561437,6.6128,151.22,151.15,0.17]
[1719977561643,6.6133,151.21,151.15,0.34]
[1719977561942,6.6138,151.2,151.14,20.0]
[1719977562318,6.6133,151.21,151.14,20.0]
[1719977562714,16.25651308,151.25,151.15,30.0]
[1719977562915,16.25651308,151.25,151.16,0.17]
[1719977563209,16.25651308,151.25,151.15,30.0]
[1719977563421,7.2742654,151.24,151.15,30.0]
[1719977563643,7.2742654,151.24,151.14,20.0]
[1719977563836,7.2742654,151.24,151.13,20.34]
[1719977564046,23.47544388,151.23,151.14,30.0]
[1719977564243,6.6154,151.17,151.14,30.0]
[1719977564542,6.6154,151.17,151.11,22.2323]
[1719977564543,6.6155,151.16,151.11,22.2323]
[1719977565127,6.615,151.17,151.11,22.2323]
[1719977565824,6.6158,151.16,151.11,15.932]
[1719977566340,6.91873346,151.17,151.11,15.932]
[1719977566341,6.6151,151.17,151.11,15.932]
[1719977568423,6.6155,151.16,151.11,15.932]
[1719977568746,6.615,151.18,151.11,15.932]
[1719977570142,6.615,151.17,151.11,15.932]
[1719977570962,7.2742654,151.19,151.11,15.932]
[1719977571119,13.8886654,151.19,151.11,15.932]
[1719977571320,13.8886654,151.19,151.12,0.17]
[1719977571727,13.8886654,151.19,151.12,30.17]
[1719977572941,7.2742654,151.19,151.12,30.17]
[1719977573728,7.2742654,151.19,151.13,6.4719]
[1719977574383,6.6146,151.18,151.13,6.4719]
[1719977577923,7.2742654,151.19,151.13,6.4719]
[1719977578124,7.2742654,151.19,151.14,0.17]
[1719977578331,7.2742654,151.19,151.14,20.34]
[1719977578944,6.9164011,151.25,151.15,16.6094]
[1719977579141,6.9164011,151.25,151.16,0.17]
[1719977579331,6.9164011,151.25,151.16,0.34]
[1719977579842,14.78967761,151.25,151.16,0.34]
[1719977580039,6.6124,151.23,151.16,0.34]
[1719977580461,6.6136,151.21,151.16,0.17]
[1719977580751,6.6128,151.22,151.15,16.6094]
[1719977581556,7.87327651,151.23,151.15,16.6094]
[1719977581770,6.9164011,151.25,151.17,6.1258]
[1719977581930,8.48333657,151.28,151.18,20.34]
[1719977581931,6.6111,151.26,151.18,20.34]
[1719977582438,6.6117,151.25,151.18,20.34]
[1719977582640,7.87327651,151.27,151.18,20.17]
[1719977582836,6.6124,151.23,151.18,0.17]
[1719977583041,6.6121,151.24,151.18,0.17]
[1719977583356,6.6121,151.24,151.18,20.17]
[1719977583558,7.87327651,151.27,151.18,20.17]
[1719977583752,6.6118,151.25,151.18,20.17]
[1719977584935,25.00953657,151.28,151.18,20.17]
[1719977585139,6.6107,151.27,151.18,20.17]
[1719977586056,15.09363657,151.28,151.19,15.16]
[1719977586249,6.6107,151.27,151.2,0.17]
[1719977586633,14.48397651,151.27,151.2,0.17]
[1719977586954,7.87327651,151.27,151.2,0.17]
[1719977587154,7.87327651,151.27,151.2,20.17]
[1719977587964,7.87327651,151.27,151.21,0.17]
[1719977588150,7.87327651,151.27,151.23,16.478]
[1719977588457,14.48227651,151.31,151.24,0.17]
[1719977589757,8.48333657,151.32,151.24,0.17]
[1719977589758,6.6099,151.29,151.24,0.17]
[1719977589965,7.87327651,151.3,151.23,16.478]
[1719977590157,7.87327651,151.3,151.24,0.17]
[1719977590471,7.87327651,151.3,151.24,0.34]
[1719977591269,7.87327651,151.3,151.24,20.34]
[1719977592741,6.6084,151.33,151.24,20.34]
[1719977593276,6.6085,151.32,151.24,20.34]
[1719977593569,0.814467,151.34,151.25,6.057]
[1719977593761,7.422067,151.34,151.26,20.34]
[1719977594073,6.6081,151.33,151.26,20.34]
[1719977594269,0.814467,151.34,151.26,20.34]
[1719977594449,6.6085,151.32,151.26,20.34]
[1719977594643,6.6082,151.33,151.26,0.34]
[1719977594964,6.6081,151.33,151.26,20.34]
[1719977595140,8.25255465,151.34,151.26,20.34]
[1719977595467,8.25255465,151.34,151.27,15.5366]
[1719977595671,8.25255465,151.34,151.28,0.17]
[1719977596248,0.814467,151.34,151.28,0.34]
[1719977596438,0.814467,151.34,151.28,20.34]
[1719977597058,0.814467,151.34,151.28,0.34]
[1719977597650,0.814467,151.34,151.28,20.34]
[1719977597978,0.814467,151.34,151.28,20.17]
[1719977598271,0.814467,151.34,151.29,0.17]
[1719977598470,0.814467,151.34,151.28,20.17]
[1719977598471,7.422067,151.34,151.28,20.17]
[1719977598653,0.814467,151.34,151.28,20.17]
[1719977598841,0.814467,151.34,151.29,0.17]
[1719977599048,7.422367,151.34,151.28,20.17]
[1719977600552,0.814467,151.34,151.28,20.17]
[1719977601077,6.6088,151.32,151.27,15.5366]
[1719977601372,6.6097,151.3,151.27,15.5366]
[1719977601698,6.6097,151.3,151.14,134.93844414]
[1719977601699,6.2356,151.27,151.11,22.9305]
[1719977601853,6.6134,151.21,151.11,122.9305]
[1719977602052,6.6134,151.21,151.11,22.9305]
[1719977602053,14.51115413,151.21,151.11,22.9305]
[1719977602365,14.51185413,151.2,151.11,22.9305]
[1719977603153,14.51185413,151.2,151.12,20.0]
[1719977603359,6.6147,151.18,151.12,20.0]
[1719977603877,6.6147,151.18,151.11,22.9305]
[1719977604052,20.687343,151.2,151.11,22.9305]
[1719977604252,7.89775413,151.2,151.11,22.9305]
[1719977604877,7.89775413,151.2,151.12,0.17]
[1719977605056,7.89775413,151.2,151.12,0.34]
[1719977605482,6.6146,151.18,151.11,22.9305]
[1719977605656,6.6153,151.17,151.11,22.9305]
[1719977605856,14.51305413,151.17,151.11,22.9305]
[1719977606559,7.89775413,151.17,151.11,22.9305]
[1719977607081,11.9459222,151.2,151.11,22.9305]
[1719977607305,7.89775413,151.22,151.12,0.17]
[1719977607582,7.89775413,151.22,151.12,0.34]
[1719977607888,14.51095413,151.22,151.12,20.34]
[1719977608178,6.6134,151.21,151.13,20.0]
[1719977608365,14.51115413,151.21,151.14,0.17]
[1719977608566,7.89775413,151.21,151.14,0.17]
[1719977608750,7.89775413,151.21,151.14,0.34]
[1719977608954,7.89775413,151.21,151.11,22.9305]
[1719977609154,6.6141,151.2,151.11,22.9305]
[1719977609358,14.51185413,151.2,151.12,0.34]
[1719977610052,7.89775413,151.2,151.12,0.34]
[1719977610271,7.89775413,151.2,151.12,120.34]
[1719977610479,7.89775413,151.2,151.13,23.55]
[1719977610677,7.89775413,151.2,151.14,0.34]
[1719977610857,7.89775413,151.2,151.14,20.34]
[1719977611282,7.89775413,151.2,151.14,120.34]
[1719977611582,9.77280729,151.26,151.14,120.34]
[1719977611751,17.23188364,151.26,151.14,120.34]
[1719977612153,6.6123,151.24,151.14,120.34]
[1719977613185,6.6123,151.24,151.15,6.5564]
[1719977613358,6.6124,151.23,151.16,20.34]
[1719977613754,6.612,151.24,151.16,20.34]
[1719977613987,6.6116,151.25,151.16,20.34]
[1719977614166,6.6116,151.25,151.16,120.34]
[1719977614367,6.6116,151.25,151.17,15.2799]
[1719977614573,6.6116,151.25,151.18,0.34]
[1719977617169,17.23188364,151.26,151.18,0.34]
[1719977617566,17.23188364,151.26,151.18,20.34]
[1719977617771,6.6121,151.24,151.18,20.34]
[1719977618090,6.6116,151.25,151.18,20.34]
[1719977618784,6.612,151.24,151.18,20.34]
[1719977619172,6.6125,151.23,151.18,20.34]
[1719977619368,6.6129,151.22,151.18,0.17]
[1719977619570,6.6129,151.22,151.17,15.2799]
[1719977619775,6.6125,151.23,151.17,15.2799]
[1719977619971,6.6133,151.21,151.17,15.2799]
[1719977620182,6.6129,151.22,151.17,15.2799]
[1719977621162,16.5308,151.24,151.17,15.2799]
[1719977621363,6.6142,151.19,151.15,6.5564]
[1719977622201,6.6142,151.19,151.13,16.0717]
[1719977622500,6.6142,151.19,151.14,20.0]
[1719977622782,6.6142,151.19,151.13,16.0717]
[1719977622986,6.6138,151.2,151.13,16.0717]
[1719977623784,6.6145,151.19,151.13,16.0717]
[1719977624170,14.07287635,151.2,151.13,16.0717]
[1719977625375,6.6142,151.19,151.13,16.0717]
[1719977626765,14.07327635,151.19,151.13,16.0717]
[1719977627164,7.45907635,151.19,151.13,16.0717]
[1719977627566,7.45907635,151.19,151.14,0.34]
[1719977629758,6.6129,151.22,151.14,0.34]
[1719977630086,16.21490174,151.22,151.14,0.34]
[1719977630786,6.6134,151.21,151.14,0.34]
[1719977630984,16.21540174,151.21,151.14,0.34]
[1719977632097,9.60200174,151.21,151.14,0.34]
[1719977633184,16.21540174,151.21,151.14,0.34]
[1719977633581,9.60200174,151.21,151.14,0.34]
[1719977634867,16.21530174,151.21,151.14,0.34]
[1719977635067,6.6138,151.2,151.14,0.34]
[1719977635876,6.6142,151.19,151.13,16.0717]
[1719977636379,23.67487809,151.2,151.13,16.0717]
[1719977636563,23.67487809,151.2,151.14,0.17]
[1719977636769,8.46209857,151.19,151.14,0.17]
[1719977637270,15.07629857,151.19,151.13,16.0717]
[1719977638294,8.46209857,151.19,151.13,16.0717]
[1719977644901,8.46209857,151.19,151.14,0.34]
[1719977647696,8.46209857,151.21,151.14,0.34]
[1719977648391,18.06410031,151.21,151.13,16.0717]
[1719977648583,6.6141,151.2,151.13,16.0717]
[1719977648905,15.07629857,151.19,151.13,16.0717]
[1719977649078,8.46209857,151.19,151.13,16.0717]
[1719977649897,8.46209857,151.19,151.14,0.34]
[1719977650779,8.46209857,151.19,151.14,20.34]
[1719977653595,8.46209857,151.19,151.14,20.0]
[1719977654780,8.46209857,151.19,151.15,0.34]
[1719977655900,8.46209857,151.19,151.17,15.0043]
[1719977656080,26.2819,151.32,151.18,0.34]
[1719977656285,21.9213,151.29,151.18,20.34]
[1719977656485,6.6101,151.29,151.18,20.34]
[1719977656681,6.6102,151.28,151.18,20.34]
[1719977656881,6.6102,151.28,151.19,0.35018937]
[1719977657184,6.6102,151.28,151.2,0.34]
[1719977657185,6.6108,151.27,151.2,0.34]
[1719977657377,22.89842546,151.28,151.21,0.35014305]
[1719977659504,6.6107,151.27,151.2,0.34]
[1719977659715,6.6107,151.27,151.19,0.34]
[1719977660385,22.89842546,151.28,151.19,0.34]
[1719977661405,16.28812546,151.28,151.2,21.9541]
[1719977661587,16.28812546,151.28,151.21,0.34]
[1719977661788,22.89842546,151.28,151.21,0.34]
[1719977662491,16.28812546,151.28,151.21,0.34]
[1719977662692,22.89842546,151.28,151.21,0.34]
[1719977664714,16.28812546,151.28,151.21,0.34]
[1719977665809,11.78,151.27,151.22,11.78]
[1719977665996,11.78,151.27,151.23,0.17]
[1719977666410,16.28812546,151.28,151.23,0.17]
[1719977666585,11.78,151.27,151.23,11.95]
[1719977667002,16.28812546,151.28,151.23,11.95]
[1719977667195,20.00250705,151.27,151.23,11.95]
[1719977667492,20.00250705,151.27,151.23,0.17]
[1719977668417,8.22250705,151.27,151.23,0.17]
[1719977668629,20.00250705,151.27,151.23,0.17]
[1719977671308,20.00250705,151.27,151.21,0.17]
[1719977671512,11.78,151.26,151.21,12.12]
[1719977671716,20.00250705,151.26,151.21,12.12]
[1719977671963,20.00250705,151.26,151.22,11.78]
[1719977672403,20.00250705,151.26,151.21,12.12]
[1719977672703,8.22250705,151.26,151.22,11.78]
[1719977676432,11.78,151.25,151.21,0.34]
[1719977676615,20.00250705,151.26,151.21,11.95]
[1719977677516,8.22250705,151.26,151.22,11.78]
[1719977678124,20.00250705,151.26,151.21,11.95]
[1719977680932,22.8837,151.32,151.2,15.5989]
[1719977680933,19.99736483,151.25,151.2,15.5989]
[1719977681138,19.99736483,151.25,151.2,27.3789]
[1719977683421,8.21736483,151.25,151.21,11.78]
[1719977686547,8.21736483,151.25,151.22,11.78]
[1719977686747,8.21736483,151.25,151.23,11.78]
[1719977687449,8.21736483,151.25,151.22,11.78]
[1719977690428,8.21736483,151.25,151.23,11.78]
[1719977690837,6.609,151.31,151.22,0.17]
[1719977691023,11.78,151.3,151.25,11.78]
[1719977691236,19.5406315,151.3,151.25,11.78]
[1719977691552,11.78,151.29,151.24,11.78]
[1719977691763,7.7606315,151.3,151.25,11.78]
[1719977692055,11.78,151.29,151.24,11.78]
[1719977692645,19.5406315,151.3,151.25,11.78]
[1719977693223,7.7606315,151.3,151.25,11.78]
[1719977693447,7.7606315,151.3,151.27,11.78]
[1719977695170,7.7606315,151.3,151.23,6.3239]
[1719977695332,7.7606315,151.3,151.27,11.78]
[1719977697562,7.7606315,151.3,151.24,0.17]
[1719977697563,19.5406315,151.3,151.26,11.78]
[1719977699530,7.7606315,151.3,151.26,11.78]
[1719977701266,7.7606315,151.3,151.21,30.10918596]
[1719977701470,11.78,151.27,151.22,41.78]
[1719977701758,11.78,151.26,151.21,31.78]
[1719977702256,11.78,151.27,151.22,11.78]
[1719977704065,16.27946866,151.27,151.2,15.5989]
[1719977704360,11.78,151.24,151.19,21.72057583]
[1719977704657,11.78,151.24,151.19,11.78]
[1719977705060,11.78,151.22,151.17,9.94057583]
[1719977705257,11.78,151.22,151.18,11.78]
[1719977705458,11.78,151.22,151.17,11.78]
[1719977705849,11.78,151.21,151.17,11.78]
[1719977706534,11.78,151.22,151.18,20.0]
[1719977706734,11.78,151.21,151.18,20.0]
[1719977708069,11.78,151.22,151.18,20.0]
[1719977708437,11.78,151.22,151.15,6.4769]
[1719977708438,11.78,151.19,151.15,9.94258102]
[1719977708651,11.78,151.19,151.14,11.78]
[1719977708859,11.78,151.2,151.13,39.94258102]
[1719977709031,7.7606315,151.22,151.14,9.94258102]
[1719977709233,7.7606315,151.22,151.17,11.78]
[1719977709540,11.78,151.21,151.17,11.78]
[1719977710469,7.7606315,151.22,151.17,11.78]
[1719977710642,11.78,151.21,151.17,11.78]
[1719977711148,7.7606315,151.22,151.18,11.78]
[1719977714862,7.7606315,151.22,151.18,28.0251]
[1719977716037,19.5406315,151.22,151.18,16.2451]
[1719977717070,19.5406315,151.22,151.14,15.2543]
[1719977717071,11.78,151.2,151.14,15.2543]
[1719977717268,11.78,151.2,151.15,31.95]
[1719977717472,11.78,151.19,151.15,31.95]
[1719977717674,11.78,151.2,151.15,31.95]
[1719977718764,11.78,151.19,151.15,20.17]
[1719977718941,11.78,151.19,151.15,20.0]
[1719977720271,6.6138,151.2,151.14,15.2543]
[1719977720442,11.78,151.17,151.14,15.2543]
[1719977720846,11.78,151.17,151.13,18.1344]
[1719977721685,11.78,151.18,151.13,18.1344]
[1719977723070,7.7606315,151.19,151.15,11.78]
[1719977728561,19.5406315,151.19,151.13,6.3544]
[1719977728896,19.5406315,151.18,151.13,18.1344]
[1719977729387,19.5406315,151.18,151.13,11.78]
[1719977730369,19.5406315,151.18,151.12,0.34]
[1719977730675,19.5406315,151.18,151.13,11.78]
[1719977731387,7.7606315,151.18,151.11,0.34]
[1719977731598,11.78,151.17,151.13,11.78]
[1719977731968,11.78,151.17,151.11,0.34]
[1719977732194,11.78,151.17,151.11,20.34]
[1719977732366,11.78,151.16,151.11,20.34]
[1719977732567,11.78,151.16,151.11,32.12]
[1719977732987,11.78,151.16,151.11,31.78]
[1719977733493,11.78,151.16,151.12,11.78]
[1719977734000,17.14445571,151.17,151.13,11.78]
[1719977734294,7.7606315,151.17,151.13,11.78]
[1719977736380,7.7606315,151.17,151.14,11.78]
[1719977736685,7.7606315,151.17,151.12,0.17]
[1719977736891,7.7606315,151.17,151.14,11.78]
[1719977739381,7.7606315,151.17,151.15,11.78]
[1719977739606,37.75232421,151.21,151.16,11.78]
[1719977740385,44.36592421,151.21,151.16,11.78]
[1719977740886,34.9821,151.21,151.16,11.78]
[1719977741670,34.9821,151.21,151.17,11.78]
[1719977742000,19.10960928,151.23,151.19,11.78]
[1719977742179,25.72210928,151.23,151.18,11.78]
[1719977742903,18.3931,151.22,151.17,11.78]
[1719977743203,18.3931,151.22,151.12,0.34]
[1719977743407,18.3931,151.22,151.17,11.78]
[1719977743572,6.6131,151.22,151.17,11.78]
[1719977743771,18.3931,151.22,151.17,11.78]
[1719977744069,11.78,151.22,151.17,11.78]
[1719977746398,13.94210928,151.23,151.17,11.78]
[1719977746604,11.78,151.22,151.17,11.78]
[1719977746984,13.94210928,151.23,151.18,11.78]
[1719977747180,11.78,151.22,151.18,11.78]
[1719977747881,18.3929,151.22,151.12,40.28414473]
[1719977748187,18.3929,151.22,151.17,11.78]
[1719977749207,7.32960928,151.23,151.17,11.78]
[1719977749397,19.10960928,151.23,151.18,11.78]
[1719977749599,7.32960928,151.23,151.18,11.78]
[1719977749797,19.10960928,151.23,151.18,11.78]
[1719977750099,25.72210928,151.23,151.18,11.78]
[1719977750307,11.78,151.22,151.18,11.78]
[1719977751404,11.78,151.22,151.14,0.17]
[1719977751607,11.78,151.22,151.17,11.78]
[1719977751906,18.3929,151.22,151.14,0.17]
[1719977752199,18.3929,151.22,151.17,11.78]
[1719977753014,11.78,151.22,151.17,11.78]
[1719977754522,27.78,151.22,151.17,11.78]
[1719977754705,27.78,151.22,151.14,10.28409315]
[1719977754706,11.78,151.19,151.14,0.17]
[1719977755007,6.6147,151.18,151.13,20.0]
[1719977755210,11.78,151.16,151.13,20.0]
[1719977755509,11.78,151.15,151.09,6.1099]
[1719977755803,11.78,151.15,151.1,11.78]
[1719977757112,13.60390928,151.18,151.07,9.94767503]
[1719977757401,11.78,151.09,151.04,9.94925293]
[1719977757607,6.6195,151.07,151.04,9.94925293]
[1719977757915,14.9521315,151.07,151.02,9.94925293]
[1719977758098,11.78,151.06,151.01,11.78]
[1719977758284,11.78,151.06,150.98,16.1411]
[1719977758285,11.78,151.05,151.0,11.78]
[1719977758490,11.78,151.04,151.0,11.78]
[1719977759610,11.78,151.05,151.0,11.78]
[1719977759902,8.3326315,151.06,151.0,11.78]
[1719977760113,11.78,151.05,151.0,11.78]
[1719977760281,11.78,151.05,151.01,11.95]
[1719977760482,8.3326315,151.06,151.02,11.78]
[1719977760885,20.1126315,151.06,151.01,11.95]
[1719977762047,8.3326315,151.06,151.02,11.78]
[1719977762396,6.3397,151.1,151.05,11.78]
[1719977762590,18.1197,151.1,151.05,11.78]
[1719977762913,11.78,151.09,151.04,11.78]
[1719977763413,11.78,151.11,151.06,11.78]
[1719977763611,11.78,151.1,151.05,11.78]
[1719977763795,11.78,151.11,151.06,11.78]
[1719977764122,16.5105,151.12,151.07,11.78]
[1719977764297,7.40705345,151.15,151.03,0.17]
[1719977764298,7.40705345,151.15,151.11,11.78]
[1719977764619,18.3462,151.18,151.13,11.78]
[1719977764810,11.78,151.18,151.13,11.78]
[1719977765516,18.3948,151.18,151.13,11.78]
[1719977765688,25.80185345,151.18,151.13,11.78]
[1719977766399,14.02185345,151.18,151.13,11.78]
[1719977766590,25.80185345,151.18,151.13,11.78]
[1719977767715,14.02185345,151.18,151.08,0.17]
[1719977767918,14.02185345,151.18,151.08,23.59]
[1719977768130,14.02185345,151.18,151.09,20.34]
[1719977768412,13.52185345,151.18,151.09,20.34]
[1719977768619,7.40705345,151.18,151.09,20.34]
[1719977770693,6.615,151.17,151.09,20.34]
[1719977771517,7.40705345,151.18,151.09,20.34]
[1719977772918,25.09494644,151.21,151.09,20.34]
[1719977773292,31.70834644,151.21,151.09,20.34]
[1719977773717,6.6139,151.2,151.09,20.34]
[1719977774017,15.89452767,151.2,151.09,20.34]
[1719977774199,7.17298123,151.19,151.09,20.34]
[1719977774390,13.78718123,151.19,151.09,20.34]
[1719977774810,7.17298123,151.19,151.09,20.34]
[1719977776817,7.17298123,151.19,151.09,20.0]
[1719977777058,6.6154,151.17,151.09,20.0]
[1719977777316,6.616,151.15,151.08,20.0]
[1719977777545,6.616,151.15,151.05,45.0476]
[1719977777696,6.6168,151.14,151.05,21.4576]
[1719977777897,6.6169,151.13,151.05,21.4576]
[1719977778095,15.5394,151.14,151.03,5.24521765]
[1719977778297,15.5394,151.14,151.01,132.61864462]
[1719977778511,6.6173,151.12,151.02,30.0]
[1719977778706,6.6178,151.11,151.01,22.6702]
[1719977778921,6.6182,151.1,151.01,22.6702]
[1719977779098,6.619,151.08,151.0,260.1]
[1719977779300,6.6186,151.09,151.0,260.1]
[1719977779721,6.6181,151.1,151.0,260.1]
[1719977780318,13.79108123,151.1,151.0,260.1]
[1719977780604,13.79108123,151.1,151.01,20.0]
[1719977781212,13.79108123,151.1,151.02,0.17]
[1719977782030,7.17298123,151.1,151.02,0.17]
[1719977782323,13.79118123,151.1,151.02,0.17]
[1719977782524,13.79118123,151.1,150.99,380.4]
[1719977782525,6.6195,151.07,150.99,380.4]
[1719977782822,6.6195,151.07,150.96,28.82610102]
[1719977783524,6.619,151.08,150.96,28.82610102]
[1719977783734,13.79198123,151.08,150.96,28.82610102]
[1719977784028,13.79198123,151.08,150.96,23.59]
[1719977784206,6.6195,151.07,150.96,23.59]
[1719977784820,6.6195,151.07,150.98,0.34]
[1719977785103,6.6195,151.07,150.98,20.17]
[1719977785104,22.4202,151.06,150.98,20.17]
[1719977785304,29.59318123,151.06,150.95,20.0]
[1719977785518,29.59318123,151.06,150.96,0.17]
[1719977786315,29.59318123,151.06,150.96,0.34]
[1719977788017,22.97328123,151.06,150.96,0.34]
[1719977790637,29.59318123,151.06,150.96,0.34]
[1719977791737,22.97328123,151.06,150.96,0.34]
[1719977793313,29.59318123,151.06,150.96,0.34]
[1719977794247,6.6203,151.05,150.96,0.34]
[1719977794731,29.59318123,151.06,150.96,0.34]
[1719977797716,22.97328123,151.06,150.96,0.34]
[1719977798419,29.59308123,151.06,150.96,0.34]
[1719977800552,22.97328123,151.06,150.96,123.93]
[1719977800839,22.97328123,151.06,150.97,50.0]
[1719977801018,22.97328123,151.06,150.98,0.34]
[1719977801712,6.3461,151.09,151.0,115.4838]
[1719977801908,6.3461,151.09,151.01,20.34]
[1719977802453,16.0776,151.1,151.02,23.59]
[1719977802751,16.0776,151.1,151.03,20.34]
[1719977804822,16.0776,151.1,150.99,6.5507]
[1719977804823,6.017,151.08,150.97,410.4]
[1719977805113,6.017,151.08,150.97,380.4]
[1719977805314,6.6206,151.05,150.97,380.4]
[1719977805937,6.6208,151.04,150.97,380.4]
[1719977806746,6.6204,151.05,150.97,380.4]
[1719977808439,6.6204,151.05,150.98,0.17]
[1719977811035,6.6199,151.06,150.98,0.17]
[1719977811239,20.0,151.05,150.98,0.17]
[1719977812052,26.6203,151.05,150.98,0.17]
[1719977812348,20.0,151.05,150.98,0.17]
[1719977812548,15.8712,151.07,150.98,0.17]
[1719977812740,15.8712,151.07,150.98,0.34]
[1719977812915,22.4907,151.07,150.98,20.34]